[Event "*** MasterClass Titled Tuesday Blitz"]
[Site "Chess.com"]
[Date "2017.12.05"]
[Round "3"]
[White "hectorfiori"]
[Black "MasterBlitz83"]
[Result "1-0"]
[WhiteElo "2192"]
[BlackElo "1485"]
[TimeControl "180+2"]
[EndTime "14:52:24 PST"]
[Termination "hectorfiori won by resignation"]

1. e4 {[%clk 0:03:01.9]} 1... c5 {[%clk 0:02:59.8]} 2. Nf3 {[%clk 0:03:02.4]}
2... d6 {[%clk 0:03:00.8]} 3. d4 {[%clk 0:03:01.8]} 3... cxd4 {[%clk 0:03:01.7]}
4. Nxd4 {[%clk 0:03:03.7]} 4... Nf6 {[%clk 0:03:02.1]} 5. Nc3 {[%clk 0:03:04.5]}
5... a6 {[%clk 0:03:03.2]} 6. f4 {[%clk 0:03:04.6]} 6... e5 {[%clk 0:03:03.7]}
7. Nf3 {[%clk 0:03:05.4]} 7... Nc6 {[%clk 0:03:00.9]} 8. Bd3 {[%clk 0:03:05.5]}
8... Be7 {[%clk 0:03:00.6]} 9. O-O {[%clk 0:03:05.7]} 9... O-O {[%clk
0:03:00.7]} 10. Kh1 {[%clk 0:03:05.8]} 10... Bg4 {[%clk 0:02:55.6]} 11. Qe1
{[%clk 0:03:00.4]} 11... Nb4 {[%clk 0:02:52.1]} 12. a3 {[%clk 0:02:54.7]} 12...
Nxd3 {[%clk 0:02:52.1]} 13. cxd3 {[%clk 0:02:56.5]} 13... Qc7 {[%clk 0:02:52.9]}
14. fxe5 {[%clk 0:02:47.6]} 14... dxe5 {[%clk 0:02:54.8]} 15. Bg5 {[%clk
0:02:39.1]} 15... Rfd8 {[%clk 0:02:51.9]} 16. Bxf6 {[%clk 0:02:30]} 16... Bxf6
{[%clk 0:02:51.9]} 17. Nd5 {[%clk 0:02:31.1]} 17... Qd6 {[%clk 0:02:42.8]} 18.
Qg3 {[%clk 0:02:14.6]} 18... Bxf3 {[%clk 0:02:25.6]} 19. Rxf3 {[%clk 0:02:11.6]}
19... Be7 {[%clk 0:02:21]} 20. Raf1 {[%clk 0:02:07.6]} 20... Rf8 {[%clk
0:01:50.9]} 21. h4 {[%clk 0:01:19]} 21... Rae8 {[%clk 0:01:34.9]} 22. h5 {[%clk
0:01:15.2]} 22... Qh6 {[%clk 0:01:33.4]} 23. Qg4 {[%clk 0:01:00.5]} 23... Qg5
{[%clk 0:01:08.2]} 24. Nxe7+ {[%clk 0:00:45.9]} 24... Qxe7 {[%clk 0:01:06.4]}
25. Rf6 {[%clk 0:00:45.2]} 25... Kh8 {[%clk 0:00:57.7]} 26. h6 {[%clk
0:00:33.6]} 26... g6 {[%clk 0:00:51.4]} 27. Qg5 {[%clk 0:00:30.2]} 27... Rd8
{[%clk 0:00:44.9]} 28. R1f3 {[%clk 0:00:23.7]} 28... Rd6 {[%clk 0:00:39]} 29.
Rxg6 {[%clk 0:00:18.6]} 29... Qxg5 {[%clk 0:00:31.6]} 30. Rxg5 {[%clk
0:00:20.3]} 30... Rxh6+ {[%clk 0:00:31.6]} 31. Kg1 {[%clk 0:00:20.5]} 31... f6
{[%clk 0:00:32.7]} 32. Rxe5 {[%clk 0:00:21]} 32... fxe5 {[%clk 0:00:28.5]} 33.
Rxf8+ {[%clk 0:00:22.8]} 33... Kg7 {[%clk 0:00:29.7]} 34. Rb8 {[%clk 0:00:23.4]}
34... Rb6 {[%clk 0:00:29.8]} 35. Rd8 {[%clk 0:00:24.1]} 35... Rxb2 {[%clk
0:00:27.9]} 36. Kh2 {[%clk 0:00:21.8]} 36... b5 {[%clk 0:00:25]} 37. Rd6 {[%clk
0:00:20.3]} 37... Rb3 {[%clk 0:00:23.6]} 38. Rxa6 {[%clk 0:00:20.7]} 38... Rxd3
{[%clk 0:00:22.1]} 39. Rb6 {[%clk 0:00:19.3]} 39... Rxa3 {[%clk 0:00:21.5]} 40.
Rxb5 {[%clk 0:00:20.2]} 40... Kf6 {[%clk 0:00:13.9]} 41. Rb6+ {[%clk 0:00:20.3]}
41... Kg5 {[%clk 0:00:11.3]} 42. g3 {[%clk 0:00:14.9]} 42... Re3 {[%clk
0:00:10.2]} 43. Rb7 {[%clk 0:00:14.9]} 43... h5 {[%clk 0:00:09.9]} 44. Rb4
{[%clk 0:00:15.5]} 44... Kg4 {[%clk 0:00:09.5]} 45. Rb8 {[%clk 0:00:16.3]} 45...
Rxe4 {[%clk 0:00:10.1]} 46. Rg8+ {[%clk 0:00:17.6]} 46... Kf5 {[%clk 0:00:11.2]}
47. Kh3 {[%clk 0:00:18.5]} 47... Re1 {[%clk 0:00:11.3]} 48. Rf8+ {[%clk
0:00:18.9]} 48... Ke4 {[%clk 0:00:12.4]} 49. Kh4 {[%clk 0:00:15.8]} 49... Rh1+
{[%clk 0:00:13]} 50. Kg5 {[%clk 0:00:16.3]} 50... Kd3 {[%clk 0:00:13.8]} 51.
Rd8+ {[%clk 0:00:16.2]} 51... Ke2 {[%clk 0:00:13]} 52. Kf5 {[%clk 0:00:16]}
52... Rg1 {[%clk 0:00:13.2]} 53. Rg8 {[%clk 0:00:16.4]} 53... h4 {[%clk
0:00:13.3]} 54. g4 {[%clk 0:00:17.8]} 54... h3 {[%clk 0:00:14.2]} 55. Rh8 {[%clk
0:00:18.3]} 55... Rf1+ {[%clk 0:00:10.6]} 56. Kxe5 {[%clk 0:00:19.3]} 56... Kf3
{[%clk 0:00:11.4]} 57. g5 {[%clk 0:00:20.2]} 57... Rg1 {[%clk 0:00:11.5]} 58.
Kf6 {[%clk 0:00:20.5]} 58... Kg2 {[%clk 0:00:11.8]} 59. g6 {[%clk 0:00:20.6]}
59... Kf1 {[%clk 0:00:12.2]} 60. Rxh3 {[%clk 0:00:20.1]} 60... Kg2 {[%clk
0:00:10.4]} 61. Rh5 {[%clk 0:00:20.9]} 61... Kg3 {[%clk 0:00:11.1]} 62. g7
{[%clk 0:00:21.5]} 62... Kf4 {[%clk 0:00:11.2]} 63. Rf5+ {[%clk 0:00:22.2]}
63... Ke4 {[%clk 0:00:11.5]} 64. Rg5 {[%clk 0:00:22.9]} 64... Rf1+ {[%clk
0:00:11.3]} 65. Ke7 {[%clk 0:00:23.3]} 1-0

[Event "*** MasterClass Titled Tuesday Blitz"]
[Site "Chess.com"]
[Date "2017.12.05"]
[Round "3"]
[White "Abdodi"]
[Black "HolyInquisitor0001"]
[Result "0-1"]
[WhiteElo "2093"]
[BlackElo "1656"]
[TimeControl "180+2"]
[EndTime "14:52:26 PST"]
[Termination "HolyInquisitor0001 won on time"]

1. e3 {[%clk 0:00:14.6]} 1... g6 {[%clk 0:02:59.7]} 2. d4 {[%clk 0:00:15]} 2...
Bg7 {[%clk 0:03:01.2]} 3. Nf3 {[%clk 0:00:16.2]} 3... d6 {[%clk 0:03:02.7]} 4.
Be2 {[%clk 0:00:17.6]} 4... Nf6 {[%clk 0:03:04.1]} 5. c4 {[%clk 0:00:19.4]} 5...
O-O {[%clk 0:03:05.3]} 6. O-O {[%clk 0:00:21.3]} 6... Nc6 {[%clk 0:03:02.6]} 7.
Nc3 {[%clk 0:00:23.2]} 7... e5 {[%clk 0:03:03.4]} 8. Re1 {[%clk 0:00:25.1]} 8...
Bg4 {[%clk 0:02:57.1]} 9. h3 {[%clk 0:00:25.7]} 9... exd4 {[%clk 0:02:49.7]} 10.
exd4 {[%clk 0:00:26.1]} 10... Bd7 {[%clk 0:02:40.8]} 11. Bf1 {[%clk 0:00:26]}
11... a6 {[%clk 0:02:38.4]} 12. Bg5 {[%clk 0:00:26.7]} 12... h6 {[%clk
0:02:38.3]} 13. Bh4 {[%clk 0:00:27.3]} 13... Re8 {[%clk 0:02:38.2]} 14. Nd5
{[%clk 0:00:27.2]} 14... g5 {[%clk 0:02:35.8]} 15. Nxf6+ {[%clk 0:00:26.9]}
15... Qxf6 {[%clk 0:02:31.6]} 16. Bg3 {[%clk 0:00:28.8]} 16... Nxd4 {[%clk
0:02:31.3]} 17. Nxd4 {[%clk 0:00:29.7]} 17... Qxd4 {[%clk 0:02:32]} 18. Qc2
{[%clk 0:00:30.2]} 18... Be6 {[%clk 0:02:12.7]} 19. b3 {[%clk 0:00:30.6]} 19...
Rad8 {[%clk 0:01:45.8]} 20. Rac1 {[%clk 0:00:31.5]} 20... f5 {[%clk 0:01:37.6]}
21. Kh1 {[%clk 0:00:30.5]} 21... f4 {[%clk 0:01:37.8]} 22. Bh2 {[%clk
0:00:31.6]} 22... Bf7 {[%clk 0:01:24.8]} 23. Bg1 {[%clk 0:00:32.7]} 23... Qf6
{[%clk 0:01:24.4]} 24. f3 {[%clk 0:00:33.7]} 24... Bg6 {[%clk 0:01:22.8]} 25.
Qf2 {[%clk 0:00:32.3]} 25... b6 {[%clk 0:01:15.6]} 26. Rcd1 {[%clk 0:00:32.9]}
26... Rxe1 {[%clk 0:01:14.3]} 27. Rxe1 {[%clk 0:00:33.5]} 27... Re8 {[%clk
0:01:15.4]} 28. Rxe8+ {[%clk 0:00:30.7]} 28... Bxe8 {[%clk 0:01:15.4]} 29. Qe2
{[%clk 0:00:31.8]} 29... Qe5 {[%clk 0:01:12.4]} 30. Qxe5 {[%clk 0:00:31.3]}
30... Bxe5 {[%clk 0:01:12.7]} 31. Bd3 {[%clk 0:00:33.2]} 31... Bc6 {[%clk
0:01:02.3]} 32. Bf2 {[%clk 0:00:33.8]} 32... Kg7 {[%clk 0:01:02.7]} 33. h4
{[%clk 0:00:33.9]} 33... Kf6 {[%clk 0:01:02.8]} 34. hxg5+ {[%clk 0:00:34.5]}
34... hxg5 {[%clk 0:01:03.9]} 35. Kg1 {[%clk 0:00:35.5]} 35... Bd7 {[%clk
0:00:57.5]} 36. Kf1 {[%clk 0:00:36.2]} 36... g4 {[%clk 0:00:56.4]} 37. fxg4
{[%clk 0:00:37]} 37... Bxg4 {[%clk 0:00:57.8]} 38. Be4 {[%clk 0:00:37.2]} 38...
Bd1 {[%clk 0:00:53.3]} 39. b4 {[%clk 0:00:35.8]} 39... Bc3 {[%clk 0:00:48.9]}
40. c5 {[%clk 0:00:34.3]} 40... Bxb4 {[%clk 0:00:42.7]} 41. cxb6 {[%clk
0:00:35.2]} 41... cxb6 {[%clk 0:00:43.8]} 42. Bxb6 {[%clk 0:00:37.1]} 42... Ke5
{[%clk 0:00:42.4]} 43. Ba8 {[%clk 0:00:37.1]} 43... Bc2 {[%clk 0:00:41.2]} 44.
Ke2 {[%clk 0:00:37.6]} 44... Bb1 {[%clk 0:00:39.6]} 45. a4 {[%clk 0:00:37.6]}
45... Bc2 {[%clk 0:00:36.3]} 46. a5 {[%clk 0:00:38.5]} 46... Ba4 {[%clk
0:00:33]} 47. Bb7 {[%clk 0:00:38.5]} 47... Bb5+ {[%clk 0:00:34.1]} 48. Kf3
{[%clk 0:00:38.4]} 48... d5 {[%clk 0:00:27.9]} 49. g3 {[%clk 0:00:39.1]} 49...
fxg3 {[%clk 0:00:26.4]} 50. Kxg3 {[%clk 0:00:39.9]} 50... d4 {[%clk 0:00:19.9]}
51. Kf2 {[%clk 0:00:40.9]} 51... Kf4 {[%clk 0:00:18.3]} 52. Bc7+ {[%clk
0:00:38]} 52... Kg4 {[%clk 0:00:16.9]} 53. Bc8+ {[%clk 0:00:38.4]} 53... Kg5
{[%clk 0:00:17.6]} 54. Bd8+ {[%clk 0:00:38.1]} 54... Kg6 {[%clk 0:00:17.9]} 55.
Bg4 {[%clk 0:00:36.4]} 55... Kf7 {[%clk 0:00:17.9]} 56. Bd1 {[%clk 0:00:35.2]}
56... Ke8 {[%clk 0:00:18.2]} 57. Bb6 {[%clk 0:00:35.8]} 57... Kd7 {[%clk
0:00:18.7]} 58. Bxd4 {[%clk 0:00:31.6]} 58... Kd6 {[%clk 0:00:18.4]} 59. Bb6
{[%clk 0:00:31.9]} 59... Kc6 {[%clk 0:00:18.6]} 0-1

[Event "*** MasterClass Titled Tuesday Blitz"]
[Site "Chess.com"]
[Date "2017.12.05"]
[Round "3"]
[White "StellarChessPro"]
[Black "GMKrikor"]
[Result "1/2-1/2"]
[WhiteElo "2311"]
[BlackElo "2642"]
[TimeControl "180+2"]
[EndTime "14:54:20 PST"]
[Termination "Game drawn by 50-move rule"]

1. d4 {[%clk 0:03:01.9]} 1... Nf6 {[%clk 0:03:00.7]} 2. Bg5 {[%clk 0:03:01.2]}
2... d5 {[%clk 0:03:01.8]} 3. Bxf6 {[%clk 0:03:01.9]} 3... gxf6 {[%clk
0:03:02.8]} 4. e3 {[%clk 0:03:03.8]} 4... c5 {[%clk 0:03:04.1]} 5. c4 {[%clk
0:03:02.6]} 5... cxd4 {[%clk 0:02:58.3]} 6. exd4 {[%clk 0:02:57.7]} 6... Nc6
{[%clk 0:02:30.6]} 7. Nc3 {[%clk 0:02:59.6]} 7... dxc4 {[%clk 0:02:25.9]} 8. d5
{[%clk 0:03:00.1]} 8... Ne5 {[%clk 0:02:27.4]} 9. f4 {[%clk 0:03:00.7]} 9...
Nd3+ {[%clk 0:02:27.1]} 10. Bxd3 {[%clk 0:03:01.3]} 10... cxd3 {[%clk
0:02:28.8]} 11. Qxd3 {[%clk 0:03:03.1]} 11... Rg8 {[%clk 0:02:23.3]} 12. g3
{[%clk 0:02:53.5]} 12... Qb6 {[%clk 0:02:22.7]} 13. Nf3 {[%clk 0:02:35.5]} 13...
Bh3 {[%clk 0:02:18.9]} 14. Rg1 {[%clk 0:02:20.3]} 14... O-O-O {[%clk 0:01:47.1]}
15. O-O-O {[%clk 0:02:14.9]} 15... Kb8 {[%clk 0:01:47.5]} 16. Kb1 {[%clk
0:02:13.7]} 16... e6 {[%clk 0:01:40.8]} 17. Ka1 {[%clk 0:02:14.1]} 17... Bf5
{[%clk 0:01:35.8]} 18. Qd2 {[%clk 0:02:07.1]} 18... Bb4 {[%clk 0:01:31.8]} 19.
a3 {[%clk 0:02:04.4]} 19... Qa5 {[%clk 0:01:28]} 20. Nd4 {[%clk 0:01:59.2]}
20... Rxd5 {[%clk 0:01:21.3]} 21. Qc1 {[%clk 0:01:33.4]} 21... Rc8 {[%clk
0:00:59.1]} 22. Nxf5 {[%clk 0:01:05.7]} 22... Rxd1 {[%clk 0:00:51.6]} 23. Rxd1
{[%clk 0:01:05]} 23... Bxc3 {[%clk 0:00:35.6]} 24. Nd6 {[%clk 0:00:57.1]} 24...
Rc6 {[%clk 0:00:21.9]} 25. bxc3 {[%clk 0:00:29.5]} 25... Rxc3 {[%clk 0:00:21.9]}
26. Qb2 {[%clk 0:00:29.5]} 26... Qxa3+ {[%clk 0:00:07.1]} 27. Qxa3 {[%clk
0:00:30]} 27... Rxa3+ {[%clk 0:00:09]} 28. Kb2 {[%clk 0:00:31.9]} 28... Rf3
{[%clk 0:00:08]} 29. Rd2 {[%clk 0:00:32.3]} 29... a5 {[%clk 0:00:07.6]} 30. Nxf7
{[%clk 0:00:32.3]} 30... Ka7 {[%clk 0:00:08.7]} 31. Nd8 {[%clk 0:00:31.8]} 31...
e5 {[%clk 0:00:10.2]} 32. fxe5 {[%clk 0:00:30.8]} 32... fxe5 {[%clk 0:00:11.8]}
33. Rd7 {[%clk 0:00:30.2]} 33... Rf2+ {[%clk 0:00:11]} 34. Kb3 {[%clk
0:00:31.4]} 34... Rxh2 {[%clk 0:00:12.9]} 35. Nxb7 {[%clk 0:00:31.6]} 35... Ka6
{[%clk 0:00:14.5]} 36. Nc5+ {[%clk 0:00:28.2]} 36... Kb5 {[%clk 0:00:15.9]} 37.
Ne4 {[%clk 0:00:28.8]} 37... a4+ {[%clk 0:00:16.9]} 38. Kc3 {[%clk 0:00:29.4]}
38... a3 {[%clk 0:00:14.1]} 39. Rd5+ {[%clk 0:00:29.3]} 39... Kb6 {[%clk
0:00:11.8]} 40. Rd1 {[%clk 0:00:29.4]} 40... Re2 {[%clk 0:00:08.4]} 41. Nd6
{[%clk 0:00:29.1]} 41... Re3+ {[%clk 0:00:06.1]} 42. Kb4 {[%clk 0:00:29.4]}
42... Rxg3 {[%clk 0:00:07.2]} 43. Nc4+ {[%clk 0:00:29.8]} 43... Kc6 {[%clk
0:00:08.8]} 44. Nxa3 {[%clk 0:00:28.3]} 44... e4 {[%clk 0:00:06]} 45. Nc4 {[%clk
0:00:29.4]} 45... e3 {[%clk 0:00:06.9]} 46. Rd6+ {[%clk 0:00:29.8]} 46... Kc7
{[%clk 0:00:07.7]} 47. Re6 {[%clk 0:00:31.7]} 47... h5 {[%clk 0:00:08.5]} 48.
Nxe3 {[%clk 0:00:31.9]} 48... Kd7 {[%clk 0:00:07.4]} 49. Re4 {[%clk 0:00:31.7]}
49... h4 {[%clk 0:00:07.1]} 50. Nf5 {[%clk 0:00:31.6]} 50... Rg5 {[%clk
0:00:03.1]} 51. Nxh4 {[%clk 0:00:32.2]} 51... Rd5 {[%clk 0:00:04.3]} 52. Nf3
{[%clk 0:00:32.9]} 52... Rd1 {[%clk 0:00:04.9]} 53. Nd4 {[%clk 0:00:33.7]} 53...
Kd6 {[%clk 0:00:05.7]} 54. Kc4 {[%clk 0:00:34.1]} 54... Rc1+ {[%clk 0:00:07.1]}
55. Kd3 {[%clk 0:00:33.7]} 55... Rd1+ {[%clk 0:00:08.6]} 56. Kc3 {[%clk
0:00:34.5]} 56... Rc1+ {[%clk 0:00:07.3]} 57. Nc2 {[%clk 0:00:35.7]} 57... Rh1
{[%clk 0:00:07.8]} 58. Rg4 {[%clk 0:00:36.4]} 58... Ke5 {[%clk 0:00:05.7]} 59.
Ra4 {[%clk 0:00:36.2]} 59... Rh3+ {[%clk 0:00:06.1]} 60. Kd2 {[%clk 0:00:37.2]}
60... Rh2+ {[%clk 0:00:07.2]} 61. Kd3 {[%clk 0:00:38.6]} 61... Kd6 {[%clk
0:00:08.2]} 62. Ne3 {[%clk 0:00:39.6]} 62... Kc6 {[%clk 0:00:07]} 63. Rg4 {[%clk
0:00:40.1]} 63... Ra2 {[%clk 0:00:06.6]} 64. Kd4 {[%clk 0:00:40.7]} 64... Rd2+
{[%clk 0:00:07.8]} 65. Kc3 {[%clk 0:00:41.5]} 65... Ra2 {[%clk 0:00:08.6]} 66.
Nc4 {[%clk 0:00:42.6]} 66... Kc5 {[%clk 0:00:07.7]} 67. Rg5+ {[%clk 0:00:43.3]}
67... Kc6 {[%clk 0:00:09.3]} 68. Rh5 {[%clk 0:00:45.2]} 68... Rg2 {[%clk
0:00:09.8]} 69. Kb4 {[%clk 0:00:46]} 69... Kd7 {[%clk 0:00:10]} 70. Rh6 {[%clk
0:00:46.7]} 70... Rg5 {[%clk 0:00:08.7]} 71. Ne3 {[%clk 0:00:46.9]} 71... Re5
{[%clk 0:00:08.1]} 72. Nc4 {[%clk 0:00:47.1]} 72... Rg5 {[%clk 0:00:09.3]} 73.
Kc3 {[%clk 0:00:48.4]} 73... Ke7 {[%clk 0:00:06.9]} 74. Kd4 {[%clk 0:00:49.1]}
74... Kf7 {[%clk 0:00:06.4]} 75. Ra6 {[%clk 0:00:50.4]} 75... Ke7 {[%clk
0:00:07.1]} 76. Ne5 {[%clk 0:00:51.1]} 76... Rg1 {[%clk 0:00:07.7]} 77. Nf3
{[%clk 0:00:50.5]} 77... Rd1+ {[%clk 0:00:08.3]} 78. Ke5 {[%clk 0:00:50.9]}
78... Kd7 {[%clk 0:00:09.2]} 79. Nd4 {[%clk 0:00:51.3]} 79... Kc7 {[%clk
0:00:10.8]} 80. Kd5 {[%clk 0:00:51.8]} 80... Rc1 {[%clk 0:00:10.3]} 81. Ra7+
{[%clk 0:00:52.4]} 81... Kb6 {[%clk 0:00:10.6]} 82. Rh7 {[%clk 0:00:53.2]} 82...
Rg1 {[%clk 0:00:11]} 83. Rh8 {[%clk 0:00:53.7]} 83... Kc7 {[%clk 0:00:11.1]} 84.
Rh7+ {[%clk 0:00:52.7]} 84... Kb6 {[%clk 0:00:12.6]} 85. Re7 {[%clk 0:00:53.1]}
85... Rg2 {[%clk 0:00:12.8]} 86. Re8 {[%clk 0:00:54]} 86... Kc7 {[%clk 0:00:13]}
87. Re7+ {[%clk 0:00:54]} 87... Kb6 {[%clk 0:00:14.1]} 88. Re1 {[%clk
0:00:55.8]} 88... Kc7 {[%clk 0:00:13.7]} 89. Rc1+ {[%clk 0:00:56.3]} 89... Kd7
{[%clk 0:00:15.2]} 90. Ra1 {[%clk 0:00:57.7]} 90... Rg5+ {[%clk 0:00:16.3]} 91.
Kc4 {[%clk 0:00:58.7]} 91... Rg4 {[%clk 0:00:16.9]} 92. Ra6 {[%clk 0:00:59.4]}
92... Rh4 {[%clk 0:00:16.9]} 93. Kd3 {[%clk 0:01:00.2]} 93... Rh5 {[%clk
0:00:15.9]} 94. Ke3 {[%clk 0:01:01]} 94... Rh3+ {[%clk 0:00:16.2]} 95. Ke4
{[%clk 0:01:02.2]} 95... Rh5 {[%clk 0:00:17.5]} 96. Nf5 {[%clk 0:01:02.6]} 96...
Kc7 {[%clk 0:00:18.5]} 97. Ke5 {[%clk 0:01:03.1]} 97... Kb7 {[%clk 0:00:19.6]}
98. Rd6 {[%clk 0:01:04.1]} 98... Rh1 {[%clk 0:00:20.3]} 99. Ne7 {[%clk
0:01:04.2]} 99... Re1+ {[%clk 0:00:20.7]} 100. Kf6 {[%clk 0:01:05.4]} 100... Kc7
{[%clk 0:00:22.3]} 101. Rd2 {[%clk 0:01:05]} 101... Rf1+ {[%clk 0:00:21.1]} 102.
Ke6 {[%clk 0:01:04]} 102... Re1+ {[%clk 0:00:22.5]} 103. Kf7 {[%clk 0:01:05.2]}
103... Rf1+ {[%clk 0:00:23.8]} 104. Ke8 {[%clk 0:01:06.5]} 104... Re1 {[%clk
0:00:25.1]} 105. Rc2+ {[%clk 0:01:07.6]} 105... Kd6 {[%clk 0:00:21.1]} 106. Rc6+
{[%clk 0:01:08.1]} 106... Ke5 {[%clk 0:00:22.5]} 107. Ra6 {[%clk 0:01:07.5]}
107... Kf4 {[%clk 0:00:22.4]} 1/2-1/2

[Event "*** MasterClass Titled Tuesday Blitz"]
[Site "Chess.com"]
[Date "2017.12.05"]
[Round "4"]
[White "Diwi89"]
[Black "robertito5113"]
[Result "1-0"]
[WhiteElo "2719"]
[BlackElo "443"]
[TimeControl "180+2"]
[EndTime "14:56:35 PST"]
[Termination "Diwi89 won by resignation"]

1. e4 {[%clk 0:03:01.2]} 1... e5 {[%clk 0:03:00.3]} 2. Nc3 {[%clk 0:03:01.2]}
2... Nf6 {[%clk 0:03:00.2]} 3. f4 {[%clk 0:03:02.8]} 3... Bd6 {[%clk 0:02:52.3]}
4. fxe5 {[%clk 0:02:58]} 4... Bxe5 {[%clk 0:02:52.6]} 5. d4 {[%clk 0:02:59.2]}
5... Bd6 {[%clk 0:02:49]} 6. e5 {[%clk 0:03:00.4]} 6... Bb4 {[%clk 0:02:36.2]}
7. exf6 {[%clk 0:03:00.5]} 7... gxf6 {[%clk 0:02:36.2]} 8. Nf3 {[%clk
0:03:01.8]} 8... Bxc3+ {[%clk 0:02:35.3]} 9. bxc3 {[%clk 0:03:02.6]} 9... Qe7+
{[%clk 0:02:34.4]} 10. Be2 {[%clk 0:03:03.8]} 10... O-O {[%clk 0:02:32.8]} 11.
O-O {[%clk 0:03:05]} 11... Qe4 {[%clk 0:02:28.1]} 12. Bd3 {[%clk 0:03:05.6]}
12... Qd5 {[%clk 0:02:26.6]} 13. Nh4 {[%clk 0:03:05.6]} 13... h5 {[%clk
0:02:20.3]} 14. Nf5 {[%clk 0:03:06.4]} 14... Qe6 {[%clk 0:02:16.3]} 15. Qxh5
{[%clk 0:03:06.3]} 15... Qxf5 {[%clk 0:02:12.2]} 16. Bxf5 {[%clk 0:03:06.6]} 1-0

[Event "*** MasterClass Titled Tuesday Blitz"]
[Site "Chess.com"]
[Date "2017.12.05"]
[Round "4"]
[White "ChessWarrior7197"]
[Black "sorito"]
[Result "1-0"]
[WhiteElo "2648"]
[BlackElo "2369"]
[TimeControl "180+2"]
[EndTime "14:57:19 PST"]
[Termination "ChessWarrior7197 won by resignation"]

1. d4 {[%clk 0:02:53.5]} 1... e6 {[%clk 0:02:57.1]} 2. e4 {[%clk 0:02:49.7]}
2... d5 {[%clk 0:02:58]} 3. Nd2 {[%clk 0:02:49.7]} 3... Nc6 {[%clk 0:02:57.9]}
4. Ngf3 {[%clk 0:02:49.6]} 4... Nf6 {[%clk 0:02:58.5]} 5. e5 {[%clk 0:02:50.4]}
5... Nd7 {[%clk 0:02:59.6]} 6. Bd3 {[%clk 0:02:51.5]} 6... Nb4 {[%clk
0:02:59.1]} 7. Be2 {[%clk 0:02:52.5]} 7... c5 {[%clk 0:03:00.3]} 8. c3 {[%clk
0:02:53.6]} 8... Nc6 {[%clk 0:03:01.6]} 9. Bd3 {[%clk 0:02:54.9]} 9... cxd4
{[%clk 0:03:03]} 10. cxd4 {[%clk 0:02:55.6]} 10... f6 {[%clk 0:03:04.4]} 11.
exf6 {[%clk 0:02:55.4]} 11... Qxf6 {[%clk 0:03:03.1]} 12. Nf1 {[%clk 0:02:54.2]}
12... Bd6 {[%clk 0:03:03.6]} 13. Ne3 {[%clk 0:02:53.4]} 13... O-O {[%clk
0:03:03.7]} 14. O-O {[%clk 0:02:54.4]} 14... b6 {[%clk 0:03:01.6]} 15. Ng4
{[%clk 0:02:54.9]} 15... Qf7 {[%clk 0:02:58.1]} 16. Bxh7+ {[%clk 0:02:47]} 16...
Kxh7 {[%clk 0:02:58.9]} 17. Ng5+ {[%clk 0:02:47.5]} 17... Kg8 {[%clk 0:02:56.5]}
18. Nxf7 {[%clk 0:02:48.6]} 18... Rxf7 {[%clk 0:02:57.9]} 19. Be3 {[%clk
0:02:42.4]} 19... Bb7 {[%clk 0:02:52.6]} 20. f4 {[%clk 0:02:43.3]} 20... Ne7
{[%clk 0:02:53.5]} 21. Ne5 {[%clk 0:02:43.8]} 21... Nxe5 {[%clk 0:02:49.7]} 22.
fxe5 {[%clk 0:02:45.7]} 22... Rxf1+ {[%clk 0:02:45.9]} 23. Qxf1 {[%clk
0:02:47.6]} 23... Bc7 {[%clk 0:02:44.8]} 24. Qb5 {[%clk 0:02:46.1]} 24... Rd8
{[%clk 0:02:43.7]} 25. Rc1 {[%clk 0:02:45.9]} 25... Bb8 {[%clk 0:02:44.5]} 26.
Bg5 {[%clk 0:02:46.6]} 1-0

[Event "*** MasterClass Titled Tuesday Blitz"]
[Site "Chess.com"]
[Date "2017.12.05"]
[Round "4"]
[White "aa175"]
[Black "ChessicallyInclined"]
[Result "0-1"]
[WhiteElo "1871"]
[BlackElo "2209"]
[TimeControl "180+2"]
[EndTime "14:58:04 PST"]
[Termination "ChessicallyInclined won by checkmate"]

1. e4 {[%clk 0:03:01.9]} 1... e5 {[%clk 0:03:00.6]} 2. Nf3 {[%clk 0:03:01.1]}
2... Nc6 {[%clk 0:03:01.9]} 3. Bc4 {[%clk 0:03:00.4]} 3... Nf6 {[%clk
0:03:02.2]} 4. Nc3 {[%clk 0:02:57.9]} 4... Nxe4 {[%clk 0:03:01.2]} 5. Bxf7+
{[%clk 0:02:59.5]} 5... Kxf7 {[%clk 0:03:01.8]} 6. Nxe4 {[%clk 0:03:01.1]} 6...
d5 {[%clk 0:03:03.2]} 7. Neg5+ {[%clk 0:02:52.3]} 7... Kg8 {[%clk 0:03:03.4]} 8.
d3 {[%clk 0:02:52.9]} 8... h6 {[%clk 0:03:02.2]} 9. Nh3 {[%clk 0:02:47.2]} 9...
Bg4 {[%clk 0:03:00.8]} 10. Nhg1 {[%clk 0:02:35.4]} 10... e4 {[%clk 0:02:46.2]}
11. dxe4 {[%clk 0:02:35.1]} 11... dxe4 {[%clk 0:02:48.1]} 12. Qxd8 {[%clk
0:02:33.3]} 12... Rxd8 {[%clk 0:02:50]} 13. Nh4 {[%clk 0:02:15.6]} 13... Nb4
{[%clk 0:02:46.6]} 14. f3 {[%clk 0:02:02.9]} 14... Nxc2+ {[%clk 0:02:46]} 15.
Kf2 {[%clk 0:02:02.2]} 15... Bc5+ {[%clk 0:02:43.2]} 16. Kg3 {[%clk 0:02:00.8]}
16... Nxa1 {[%clk 0:02:43.7]} 17. fxg4 {[%clk 0:01:59.2]} 17... Rd1 {[%clk
0:02:43.7]} 18. Ng6 {[%clk 0:01:47.3]} 18... Rxc1 {[%clk 0:02:40.8]} 19. Nxh8
{[%clk 0:01:47.3]} 19... Kxh8 {[%clk 0:02:42.7]} 20. g5 {[%clk 0:01:47.4]} 20...
Rxg1 {[%clk 0:02:43.3]} 21. h4 {[%clk 0:01:49.3]} 21... Rxh1 {[%clk 0:02:44.1]}
22. gxh6 {[%clk 0:01:51.2]} 22... gxh6 {[%clk 0:02:45]} 23. Kf4 {[%clk
0:01:53.1]} 23... Rxh4+ {[%clk 0:02:45.3]} 24. Ke5 {[%clk 0:01:55]} 24... e3
{[%clk 0:02:46.3]} 25. Ke6 {[%clk 0:01:56.9]} 25... e2 {[%clk 0:02:47.5]} 26.
Kd7 {[%clk 0:01:58.8]} 26... e1=Q {[%clk 0:02:48.5]} 27. Kc8 {[%clk 0:02:00.7]}
27... Bb6 {[%clk 0:02:46.3]} 28. Kb8 {[%clk 0:02:02.6]} 28... Qe4 {[%clk
0:02:45.9]} 29. Ka8 {[%clk 0:02:04.5]} 29... Rf4 {[%clk 0:02:46.5]} 30. Kb8
{[%clk 0:01:56.5]} 30... Rf8# {[%clk 0:02:48.4]} 0-1